Workbook

Sheet 里程日志
B1: 里程日志
C11: 可报销 | E11: 总计
C12: 里程 | E12: 报销
C17: 2012-05-01 | E17: 2012-05-10
C19: 期间 | E19: 期间
C20: 开始 | E20: 结束
C26: 54 | E26: 9,800
C28: 报销 | E28: 上一次加油
C29: ¢/英里 | E29: 里程表

Sheet 日志数据
B1: 里程日志
B5: 日期 | C5: 活动 | D5: 里程表 1 | E5: 位置 | F5: 里程表 2 | G5: 目的地 | H5: 报销 | I5: 加仑 | J5: 费用 | K5: 里程 | L5: MPG | M5: ￠/英里 | N5: 备注
B6: 2012-05-01 | C6: 出差 | D6: 10,123 | E6: 山腰 - 主街 | F6: 10,130 | I6: 15.56 | J6: ¥641.10 | K6: =miles -> 7 | L6: =IF(OR(LEN(数据[[#This Row],[里程表 2]]),数据[[#This Row],[里程表 1]]=""),"",IFERROR(数据[[#This Row],[里程]]/数据[[#This Row],[加仑]],"")) ->  | M6: =IF(数据[[#This Row],[MPG]]="","",100*数据[[#This Row],[费用]]/数据[[#This Row],[里程]]) -> 
B7: 2012-05-01 | C7: 出差 | D7: 10,130 | E7: 办公室 | F7: 10,200 | G7: 樱桃街 | H7: 是 | K7: =miles -> 70 | L7: =IF(OR(LEN(数据[[#This Row],[里程表 2]]),数据[[#This Row],[里程表 1]]=""),"",IFERROR(数据[[#This Row],[里程]]/数据[[#This Row],[加仑]],"")) ->  | M7: =IF(数据[[#This Row],[MPG]]="","",100*数据[[#This Row],[费用]]/数据[[#This Row],[里程]]) -> 
B8: 2012-05-01 | C8: 出差 | D8: 10,200 | E8: 枣庄 | F8: 10,285 | G8: 办公室 | H8: 是 | K8: =miles -> 85 | L8: =IF(OR(LEN(数据[[#This Row],[里程表 2]]),数据[[#This Row],[里程表 1]]=""),"",IFERROR(数据[[#This Row],[里程]]/数据[[#This Row],[加仑]],"")) ->  | M8: =IF(数据[[#This Row],[MPG]]="","",100*数据[[#This Row],[费用]]/数据[[#This Row],[里程]]) -> 
B9: 2012-05-02 | C9: 出差 | D9: 10,285 | E9: 办公室 | F9: 10,450 | G9: 可乐葡萄园 | H9: 是 | K9: =miles -> 165 | L9: =IF(OR(LEN(数据[[#This Row],[里程表 2]]),数据[[#This Row],[里程表 1]]=""),"",IFERROR(数据[[#This Row],[里程]]/数据[[#This Row],[加仑]],"")) ->  | M9: =IF(数据[[#This Row],[MPG]]="","",100*数据[[#This Row],[费用]]/数据[[#This Row],[里程]]) -> 
B10: 2012-05-02 | C10: 燃油 | D10: 10,450 | E10: 湾仔 | I10: 11.20 | J10: ¥554.20 | K10: =miles -> 650 | L10: =IF(OR(LEN(数据[[#This Row],[里程表 2]]),数据[[#This Row],[里程表 1]]=""),"",IFERROR(数据[[#This Row],[里程]]/数据[[#This Row],[加仑]],"")) -> 58.0 | M10: =IF(数据[[#This Row],[MPG]]="","",100*数据[[#This Row],[费用]]/数据[[#This Row],[里程]]) -> 85.3
B11: 2012-05-02 | C11: 出差 | D11: 10,500 | E11: 可乐葡萄园 | F11: 10,518 | G11: 办公室 | H11: 是 | K11: =miles -> 18 | L11: =IF(OR(LEN(数据[[#This Row],[里程表 2]]),数据[[#This Row],[里程表 1]]=""),"",IFERROR(数据[[#This Row],[里程]]/数据[[#This Row],[加仑]],"")) ->  | M11: =IF(数据[[#This Row],[MPG]]="","",100*数据[[#This Row],[费用]]/数据[[#This Row],[里程]]) -> 
B12: 2012-05-03 | C12: 出差 | D12: 10,518 | E12: 办公室 | F12: 10,745 | G12: 办公室 | H12: 是 | K12: =miles -> 227 | L12: =IF(OR(LEN(数据[[#This Row],[里程表 2]]),数据[[#This Row],[里程表 1]]=""),"",IFERROR(数据[[#This Row],[里程]]/数据[[#This Row],[加仑]],"")) ->  | M12: =IF(数据[[#This Row],[MPG]]="","",100*数据[[#This Row],[费用]]/数据[[#This Row],[里程]]) -> 
B13: 2012-05-04 | C13: 燃油 | D13: 10,745 | E13: 山腰 - 主街 | I13: 16.60 | J13: ¥692.40 | K13: =miles -> 295 | L13: =IF(OR(LEN(数据[[#This Row],[里程表 2]]),数据[[#This Row],[里程表 1]]=""),"",IFERROR(数据[[#This Row],[里程]]/数据[[#This Row],[加仑]],"")) -> 17.8 | M13: =IF(数据[[#This Row],[MPG]]="","",100*数据[[#This Row],[费用]]/数据[[#This Row],[里程]]) -> 234.7
B14: 2012-05-04 | C14: 出差 | D14: 10,745 | E14: 办公室 | F14: 10,800 | G14: 杨村 | H14: 是 | K14: =miles -> 55 | L14: =IF(OR(LEN(数据[[#This Row],[里程表 2]]),数据[[#This Row],[里程表 1]]=""),"",IFERROR(数据[[#This Row],[里程]]/数据[[#This Row],[加仑]],"")) ->  | M14: =IF(数据[[#This Row],[MPG]]="","",100*数据[[#This Row],[费用]]/数据[[#This Row],[里程]]) -> 
B15: 2012-05-04 | C15: 出差 | D15: 10,800 | E15: 杨村 | F15: 10,875 | G15: 办公室 | H15: 是 | K15: =miles -> 75 | L15: =IF(OR(LEN(数据[[#This Row],[里程表 2]]),数据[[#This Row],[里程表 1]]=""),"",IFERROR(数据[[#This Row],[里程]]/数据[[#This Row],[加仑]],"")) ->  | M15: =IF(数据[[#This Row],[MPG]]="","",100*数据[[#This Row],[费用]]/数据[[#This Row],[里程]]) -> 
B16: 2012-05-07 | C16: 出差 | D16: 10,875 | E16: 办公室 | F16: 10,921 | G16: 樱桃街 | H16: 是 | K16: =miles -> 46 | L16: =IF(OR(LEN(数据[[#This Row],[里程表 2]]),数据[[#This Row],[里程表 1]]=""),"",IFERROR(数据[[#This Row],[里程]]/数据[[#This Row],[加仑]],"")) ->  | M16: =IF(数据[[#This Row],[MPG]]="","",100*数据[[#This Row],[费用]]/数据[[#This Row],[里程]]) -> 
B17: 2012-05-07 | C17: 出差 | D17: 10,921 | E17: 枣庄 | F17: 10,969 | G17: 办公室 | H17: 是 | K17: =miles -> 48 | L17: =IF(OR(LEN(数据[[#This Row],[里程表 2]]),数据[[#This Row],[里程表 1]]=""),"",IFERROR(数据[[#This Row],[里程]]/数据[[#This Row],[加仑]],"")) ->  | M17: =IF(数据[[#This Row],[MPG]]="","",100*数据[[#This Row],[费用]]/数据[[#This Row],[里程]]) -> 
B18: 2012-05-09 | C18: 出差 | D18: 10,969 | E18: 办公室 | F18: 11,000 | G18: 滨江路 | H18: 是 | K18: =miles -> 31 | L18: =IF(OR(LEN(数据[[#This Row],[里程表 2]]),数据[[#This Row],[里程表 1]]=""),"",IFERROR(数据[[#This Row],[里程]]/数据[[#This Row],[加仑]],"")) ->  | M18: =IF(数据[[#This Row],[MPG]]="","",100*数据[[#This Row],[费用]]/数据[[#This Row],[里程]]) -> 
B19: 2012-05-09 | C19: 出差 | D19: 11,000 | E19: 滨江路 | F19: 11,100 | G19: 家中 | H19: 否 | K19: =miles -> 100 | L19: =IF(OR(LEN(数据[[#This Row],[里程表 2]]),数据[[#This Row],[里程表 1]]=""),"",IFERROR(数据[[#This Row],[里程]]/数据[[#This Row],[加仑]],"")) ->  | M19: =IF(数据[[#This Row],[MPG]]="","",100*数据[[#This Row],[费用]]/数据[[#This Row],[里程]]) -> 

Sheet 计算 (hidden)
A1: *** 本表保持隐藏 ***
I6: =OFFSET(I9,,secondAxis="燃油费") -> MPG
M7: 1
H8: 出差 | I8: 燃油 | J8: 燃油 | L8: Second Axis: | M8: =REPT("MPG",M7=1)&REPT("燃油费",M7=2) -> MPG
H9: 行驶里程 | I9: MPG | J9: ¢/英里
C10: 可报销里程: | D10: =SUMIFS(数据[里程],数据[报销],"是",数据[日期],">="&periodStart,数据[日期],"<="&periodEnd) -> 820 | F10: 1 | G10: =periodStart -> 2012-05-01 | H10: =SUMIFS(数据[里程],数据[日期],G10,数据[活动],$H$8) -> 162 | I10: =IFERROR(AVERAGEIFS(数据[MPG],数据[日期],G10,数据[活动],$I$8),NA()) ->  | J10: =IFERROR(AVERAGEIFS(数据[￠/英里],数据[日期],G10,数据[活动],$J$8),NA()) -> 
C11: 报销总额: | D11: =D10*ReimbursementPerMile/100 -> ¥442.80 | F11: 2 | G11: =G10+1 -> 2012-05-02 | H11: =SUMIFS(数据[里程],数据[日期],G11,数据[活动],$H$8) -> 183 | I11: =IFERROR(AVERAGEIFS(数据[MPG],数据[日期],G11,数据[活动],$I$8),NA()) -> 58.0 | J11: =IFERROR(AVERAGEIFS(数据[￠/英里],数据[日期],G11,数据[活动],$J$8),NA()) -> 85.3
F12: 3 | G12: 2012-05-03 | H12: =SUMIFS(数据[里程],数据[日期],G12,数据[活动],$H$8) -> 227 | I12: =IFERROR(AVERAGEIFS(数据[MPG],数据[日期],G12,数据[活动],$I$8),NA()) ->  | J12: =IFERROR(AVERAGEIFS(数据[￠/英里],数据[日期],G12,数据[活动],$J$8),NA()) -> 
F13: 4 | G13: 2012-05-04 | H13: =SUMIFS(数据[里程],数据[日期],G13,数据[活动],$H$8) -> 130 | I13: =IFERROR(AVERAGEIFS(数据[MPG],数据[日期],G13,数据[活动],$I$8),NA()) -> 17.8 | J13: =IFERROR(AVERAGEIFS(数据[￠/英里],数据[日期],G13,数据[活动],$J$8),NA()) -> 234.7
F14: 5 | G14: 2012-05-05 | H14: =SUMIFS(数据[里程],数据[日期],G14,数据[活动],$H$8) -> 0 | I14: =IFERROR(AVERAGEIFS(数据[MPG],数据[日期],G14,数据[活动],$I$8),NA()) ->  | J14: =IFERROR(AVERAGEIFS(数据[￠/英里],数据[日期],G14,数据[活动],$J$8),NA()) -> 
F15: 6 | G15: 2012-05-06 | H15: =SUMIFS(数据[里程],数据[日期],G15,数据[活动],$H$8) -> 0 | I15: =IFERROR(AVERAGEIFS(数据[MPG],数据[日期],G15,数据[活动],$I$8),NA()) ->  | J15: =IFERROR(AVERAGEIFS(数据[￠/英里],数据[日期],G15,数据[活动],$J$8),NA()) -> 
F16: 7 | G16: 2012-05-07 | H16: =SUMIFS(数据[里程],数据[日期],G16,数据[活动],$H$8) -> 94 | I16: =IFERROR(AVERAGEIFS(数据[MPG],数据[日期],G16,数据[活动],$I$8),NA()) ->  | J16: =IFERROR(AVERAGEIFS(数据[￠/英里],数据[日期],G16,数据[活动],$J$8),NA()) -> 
F17: 8 | G17: 2012-05-08 | H17: =SUMIFS(数据[里程],数据[日期],G17,数据[活动],$H$8) -> 0 | I17: =IFERROR(AVERAGEIFS(数据[MPG],数据[日期],G17,数据[活动],$I$8),NA()) ->  | J17: =IFERROR(AVERAGEIFS(数据[￠/英里],数据[日期],G17,数据[活动],$J$8),NA()) -> 
F18: 9 | G18: 2012-05-09 | H18: =SUMIFS(数据[里程],数据[日期],G18,数据[活动],$H$8) -> 131 | I18: =IFERROR(AVERAGEIFS(数据[MPG],数据[日期],G18,数据[活动],$I$8),NA()) ->  | J18: =IFERROR(AVERAGEIFS(数据[￠/英里],数据[日期],G18,数据[活动],$J$8),NA()) -> 
F19: 10 | G19: 2012-05-10 | H19: =SUMIFS(数据[里程],数据[日期],G19,数据[活动],$H$8) -> 0 | I19: =IFERROR(AVERAGEIFS(数据[MPG],数据[日期],G19,数据[活动],$I$8),NA()) ->  | J19: =IFERROR(AVERAGEIFS(数据[￠/英里],数据[日期],G19,数据[活动],$J$8),NA()) -> 
F20: 11 | G20: 2012-05-11 | H20: =SUMIFS(数据[里程],数据[日期],G20,数据[活动],$H$8) -> 0 | I20: =IFERROR(AVERAGEIFS(数据[MPG],数据[日期],G20,数据[活动],$I$8),NA()) ->  | J20: =IFERROR(AVERAGEIFS(数据[￠/英里],数据[日期],G20,数据[活动],$J$8),NA()) -> 
F21: 12 | G21: 2012-05-12 | H21: =SUMIFS(数据[里程],数据[日期],G21,数据[活动],$H$8) -> 0 | I21: =IFERROR(AVERAGEIFS(数据[MPG],数据[日期],G21,数据[活动],$I$8),NA()) ->  | J21: =IFERROR(AVERAGEIFS(数据[￠/英里],数据[日期],G21,数据[活动],$J$8),NA()) -> 
F22: 13 | G22: 2012-05-13 | H22: =SUMIFS(数据[里程],数据[日期],G22,数据[活动],$H$8) -> 0 | I22: =IFERROR(AVERAGEIFS(数据[MPG],数据[日期],G22,数据[活动],$I$8),NA()) ->  | J22: =IFERROR(AVERAGEIFS(数据[￠/英里],数据[日期],G22,数据[活动],$J$8),NA()) -> 
F23: 14 | G23: 2012-05-14 | H23: =SUMIFS(数据[里程],数据[日期],G23,数据[活动],$H$8) -> 0 | I23: =IFERROR(AVERAGEIFS(数据[MPG],数据[日期],G23,数据[活动],$I$8),NA()) ->  | J23: =IFERROR(AVERAGEIFS(数据[￠/英里],数据[日期],G23,数据[活动],$J$8),NA()) -> 
F24: 15 | G24: 2012-05-15 | H24: =SUMIFS(数据[里程],数据[日期],G24,数据[活动],$H$8) -> 0 | I24: =IFERROR(AVERAGEIFS(数据[MPG],数据[日期],G24,数据[活动],$I$8),NA()) ->  | J24: =IFERROR(AVERAGEIFS(数据[￠/英里],数据[日期],G24,数据[活动],$J$8),NA()) -> 
F25: 16 | G25: 2012-05-16 | H25: =SUMIFS(数据[里程],数据[日期],G25,数据[活动],$H$8) -> 0 | I25: =IFERROR(AVERAGEIFS(数据[MPG],数据[日期],G25,数据[活动],$I$8),NA()) ->  | J25: =IFERROR(AVERAGEIFS(数据[￠/英里],数据[日期],G25,数据[活动],$J$8),NA()) -> 
F26: 17 | G26: 2012-05-17 | H26: =SUMIFS(数据[里程],数据[日期],G26,数据[活动],$H$8) -> 0 | I26: =IFERROR(AVERAGEIFS(数据[MPG],数据[日期],G26,数据[活动],$I$8),NA()) ->  | J26: =IFERROR(AVERAGEIFS(数据[￠/英里],数据[日期],G26,数据[活动],$J$8),NA()) -> 
F27: 18 | G27: 2012-05-18 | H27: =SUMIFS(数据[里程],数据[日期],G27,数据[活动],$H$8) -> 0 | I27: =IFERROR(AVERAGEIFS(数据[MPG],数据[日期],G27,数据[活动],$I$8),NA()) ->  | J27: =IFERROR(AVERAGEIFS(数据[￠/英里],数据[日期],G27,数据[活动],$J$8),NA()) -> 
F28: 19 | G28: 2012-05-19 | H28: =SUMIFS(数据[里程],数据[日期],G28,数据[活动],$H$8) -> 0 | I28: =IFERROR(AVERAGEIFS(数据[MPG],数据[日期],G28,数据[活动],$I$8),NA()) ->  | J28: =IFERROR(AVERAGEIFS(数据[￠/英里],数据[日期],G28,数据[活动],$J$8),NA()) -> 
F29: 20 | G29: 2012-05-20 | H29: =SUMIFS(数据[里程],数据[日期],G29,数据[活动],$H$8) -> 0 | I29: =IFERROR(AVERAGEIFS(数据[MPG],数据[日期],G29,数据[活动],$I$8),NA()) ->  | J29: =IFERROR(AVERAGEIFS(数据[￠/英里],数据[日期],G29,数据[活动],$J$8),NA()) -> 
F30: 21 | G30: 2012-05-21 | H30: =SUMIFS(数据[里程],数据[日期],G30,数据[活动],$H$8) -> 0 | I30: =IFERROR(AVERAGEIFS(数据[MPG],数据[日期],G30,数据[活动],$I$8),NA()) ->  | J30: =IFERROR(AVERAGEIFS(数据[￠/英里],数据[日期],G30,数据[活动],$J$8),NA()) -> 
F31: 22 | G31: 2012-05-22 | H31: =SUMIFS(数据[里程],数据[日期],G31,数据[活动],$H$8) -> 0 | I31: =IFERROR(AVERAGEIFS(数据[MPG],数据[日期],G31,数据[活动],$I$8),NA()) ->  | J31: =IFERROR(AVERAGEIFS(数据[￠/英里],数据[日期],G31,数据[活动],$J$8),NA()) -> 
F32: 23 | G32: 2012-05-23 | H32: =SUMIFS(数据[里程],数据[日期],G32,数据[活动],$H$8) -> 0 | I32: =IFERROR(AVERAGEIFS(数据[MPG],数据[日期],G32,数据[活动],$I$8),NA()) ->  | J32: =IFERROR(AVERAGEIFS(数据[￠/英里],数据[日期],G32,数据[活动],$J$8),NA()) -> 
F33: 24 | G33: 2012-05-24 | H33: =SUMIFS(数据[里程],数据[日期],G33,数据[活动],$H$8) -> 0 | I33: =IFERROR(AVERAGEIFS(数据[MPG],数据[日期],G33,数据[活动],$I$8),NA()) ->  | J33: =IFERROR(AVERAGEIFS(数据[￠/英里],数据[日期],G33,数据[活动],$J$8),NA()) -> 
F34: 25 | G34: 2012-05-25 | H34: =SUMIFS(数据[里程],数据[日期],G34,数据[活动],$H$8) -> 0 | I34: =IFERROR(AVERAGEIFS(数据[MPG],数据[日期],G34,数据[活动],$I$8),NA()) ->  | J34: =IFERROR(AVERAGEIFS(数据[￠/英里],数据[日期],G34,数据[活动],$J$8),NA()) -> 
F35: 26 | G35: 2012-05-26 | H35: =SUMIFS(数据[里程],数据[日期],G35,数据[活动],$H$8) -> 0 | I35: =IFERROR(AVERAGEIFS(数据[MPG],数据[日期],G35,数据[活动],$I$8),NA()) ->  | J35: =IFERROR(AVERAGEIFS(数据[￠/英里],数据[日期],G35,数据[活动],$J$8),NA()) -> 
F36: 27 | G36: 2012-05-27 | H36: =SUMIFS(数据[里程],数据[日期],G36,数据[活动],$H$8) -> 0 | I36: =IFERROR(AVERAGEIFS(数据[MPG],数据[日期],G36,数据[活动],$I$8),NA()) ->  | J36: =IFERROR(AVERAGEIFS(数据[￠/英里],数据[日期],G36,数据[活动],$J$8),NA()) -> 
F37: 28 | G37: 2012-05-28 | H37: =SUMIFS(数据[里程],数据[日期],G37,数据[活动],$H$8) -> 0 | I37: =IFERROR(AVERAGEIFS(数据[MPG],数据[日期],G37,数据[活动],$I$8),NA()) ->  | J37: =IFERROR(AVERAGEIFS(数据[￠/英里],数据[日期],G37,数据[活动],$J$8),NA()) -> 
F38: 29 | G38: 2012-05-29 | H38: =SUMIFS(数据[里程],数据[日期],G38,数据[活动],$H$8) -> 0 | I38: =IFERROR(AVERAGEIFS(数据[MPG],数据[日期],G38,数据[活动],$I$8),NA()) ->  | J38: =IFERROR(AVERAGEIFS(数据[￠/英里],数据[日期],G38,数据[活动],$J$8),NA()) -> 
F39: 30 | G39: 2012-05-30 | H39: =SUMIFS(数据[里程],数据[日期],G39,数据[活动],$H$8) -> 0 | I39: =IFERROR(AVERAGEIFS(数据[MPG],数据[日期],G39,数据[活动],$I$8),NA()) ->  | J39: =IFERROR(AVERAGEIFS(数据[￠/英里],数据[日期],G39,数据[活动],$J$8),NA()) -> 
F40: 31 | G40: 2012-05-31 | H40: =SUMIFS(数据[里程],数据[日期],G40,数据[活动],$H$8) -> 0 | I40: =IFERROR(AVERAGEIFS(数据[MPG],数据[日期],G40,数据[活动],$I$8),NA()) ->  | J40: =IFERROR(AVERAGEIFS(数据[￠/英里],数据[日期],G40,数据[活动],$J$8),NA()) -> 
F41: 32 | G41: 2012-06-01 | H41: =SUMIFS(数据[里程],数据[日期],G41,数据[活动],$H$8) -> 0 | I41: =IFERROR(AVERAGEIFS(数据[MPG],数据[日期],G41,数据[活动],$I$8),NA()) ->  | J41: =IFERROR(AVERAGEIFS(数据[￠/英里],数据[日期],G41,数据[活动],$J$8),NA()) -> 
F42: 33 | G42: 2012-06-02 | H42: =SUMIFS(数据[里程],数据[日期],G42,数据[活动],$H$8) -> 0 | I42: =IFERROR(AVERAGEIFS(数据[MPG],数据[日期],G42,数据[活动],$I$8),NA()) ->  | J42: =IFERROR(AVERAGEIFS(数据[￠/英里],数据[日期],G42,数据[活动],$J$8),NA()) -> 
F43: 34 | G43: =G42+1 -> 2012-06-03 | H43: =SUMIFS(数据[里程],数据[日期],G43,数据[活动],$H$8) -> 0 | I43: =IFERROR(AVERAGEIFS(数据[MPG],数据[日期],G43,数据[活动],$I$8),NA()) ->  | J43: =IFERROR(AVERAGEIFS(数据[￠/英里],数据[日期],G43,数据[活动],$J$8),NA()) -> 
F44: 35 | G44: 2012-06-04 | H44: =SUMIFS(数据[里程],数据[日期],G44,数据[活动],$H$8) -> 0 | I44: =IFERROR(AVERAGEIFS(数据[MPG],数据[日期],G44,数据[活动],$I$8),NA()) ->  | J44: =IFERROR(AVERAGEIFS(数据[￠/英里],数据[日期],G44,数据[活动],$J$8),NA()) -> 
F45: 36 | G45: 2012-06-05 | H45: =SUMIFS(数据[里程],数据[日期],G45,数据[活动],$H$8) -> 0 | I45: =IFERROR(AVERAGEIFS(数据[MPG],数据[日期],G45,数据[活动],$I$8),NA()) ->  | J45: =IFERROR(AVERAGEIFS(数据[￠/英里],数据[日期],G45,数据[活动],$J$8),NA()) -> 
F46: 37 | G46: 2012-06-06 | H46: =SUMIFS(数据[里程],数据[日期],G46,数据[活动],$H$8) -> 0 | I46: =IFERROR(AVERAGEIFS(数据[MPG],数据[日期],G46,数据[活动],$I$8),NA()) ->  | J46: =IFERROR(AVERAGEIFS(数据[￠/英里],数据[日期],G46,数据[活动],$J$8),NA()) -> 
F47: 38 | G47: 2012-06-07 | H47: =SUMIFS(数据[里程],数据[日期],G47,数据[活动],$H$8) -> 0 | I47: =IFERROR(AVERAGEIFS(数据[MPG],数据[日期],G47,数据[活动],$I$8),NA()) ->  | J47: =IFERROR(AVERAGEIFS(数据[￠/英里],数据[日期],G47,数据[活动],$J$8),NA()) -> 
F48: 39 | G48: 2012-06-08 | H48: =SUMIFS(数据[里程],数据[日期],G48,数据[活动],$H$8) -> 0 | I48: =IFERROR(AVERAGEIFS(数据[MPG],数据[日期],G48,数据[活动],$I$8),NA()) ->  | J48: =IFERROR(AVERAGEIFS(数据[￠/英里],数据[日期],G48,数据[活动],$J$8),NA()) -> 
F49: 40 | G49: 2012-06-09 | H49: =SUMIFS(数据[里程],数据[日期],G49,数据[活动],$H$8) -> 0 | I49: =IFERROR(AVERAGEIFS(数据[MPG],数据[日期],G49,数据[活动],$I$8),NA()) ->  | J49: =IFERROR(AVERAGEIFS(数据[￠/英里],数据[日期],G49,数据[活动],$J$8),NA()) -> 
F50: 41 | G50: 2012-06-10 | H50: =SUMIFS(数据[里程],数据[日期],G50,数据[活动],$H$8) -> 0 | I50: =IFERROR(AVERAGEIFS(数据[MPG],数据[日期],G50,数据[活动],$I$8),NA()) ->  | J50: =IFERROR(AVERAGEIFS(数据[￠/英里],数据[日期],G50,数据[活动],$J$8),NA()) -> 
F51: 42 | G51: 2012-06-11 | H51: =SUMIFS(数据[里程],数据[日期],G51,数据[活动],$H$8) -> 0 | I51: =IFERROR(AVERAGEIFS(数据[MPG],数据[日期],G51,数据[活动],$I$8),NA()) ->  | J51: =IFERROR(AVERAGEIFS(数据[￠/英里],数据[日期],G51,数据[活动],$J$8),NA()) -> 
F52: 43 | G52: 2012-06-12 | H52: =SUMIFS(数据[里程],数据[日期],G52,数据[活动],$H$8) -> 0 | I52: =IFERROR(AVERAGEIFS(数据[MPG],数据[日期],G52,数据[活动],$I$8),NA()) ->  | J52: =IFERROR(AVERAGEIFS(数据[￠/英里],数据[日期],G52,数据[活动],$J$8),NA()) -> 
F53: 44 | G53: 2012-06-13 | H53: =SUMIFS(数据[里程],数据[日期],G53,数据[活动],$H$8) -> 0 | I53: =IFERROR(AVERAGEIFS(数据[MPG],数据[日期],G53,数据[活动],$I$8),NA()) ->  | J53: =IFERROR(AVERAGEIFS(数据[￠/英里],数据[日期],G53,数据[活动],$J$8),NA()) -> 
F54: 45 | G54: 2012-06-14 | H54: =SUMIFS(数据[里程],数据[日期],G54,数据[活动],$H$8) -> 0 | I54: =IFERROR(AVERAGEIFS(数据[MPG],数据[日期],G54,数据[活动],$I$8),NA()) ->  | J54: =IFERROR(AVERAGEIFS(数据[￠/英里],数据[日期],G54,数据[活动],$J$8),NA()) -> 
F55: 46 | G55: 2012-06-15 | H55: =SUMIFS(数据[里程],数据[日期],G55,数据[活动],$H$8) -> 0 | I55: =IFERROR(AVERAGEIFS(数据[MPG],数据[日期],G55,数据[活动],$I$8),NA()) ->  | J55: =IFERROR(AVERAGEIFS(数据[￠/英里],数据[日期],G55,数据[活动],$J$8),NA()) -> 
F56: 47 | G56: 2012-06-16 | H56: =SUMIFS(数据[里程],数据[日期],G56,数据[活动],$H$8) -> 0 | I56: =IFERROR(AVERAGEIFS(数据[MPG],数据[日期],G56,数据[活动],$I$8),NA()) ->  | J56: =IFERROR(AVERAGEIFS(数据[￠/英里],数据[日期],G56,数据[活动],$J$8),NA()) -> 
F57: 48 | G57: 2012-06-17 | H57: =SUMIFS(数据[里程],数据[日期],G57,数据[活动],$H$8) -> 0 | I57: =IFERROR(AVERAGEIFS(数据[MPG],数据[日期],G57,数据[活动],$I$8),NA()) ->  | J57: =IFERROR(AVERAGEIFS(数据[￠/英里],数据[日期],G57,数据[活动],$J$8),NA()) -> 
F58: 49 | G58: 2012-06-18 | H58: =SUMIFS(数据[里程],数据[日期],G58,数据[活动],$H$8) -> 0 | I58: =IFERROR(AVERAGEIFS(数据[MPG],数据[日期],G58,数据[活动],$I$8),NA()) ->  | J58: =IFERROR(AVERAGEIFS(数据[￠/英里],数据[日期],G58,数据[活动],$J$8),NA()) -> 
F59: 50 | G59: 2012-06-19 | H59: =SUMIFS(数据[里程],数据[日期],G59,数据[活动],$H$8) -> 0 | I59: =IFERROR(AVERAGEIFS(数据[MPG],数据[日期],G59,数据[活动],$I$8),NA()) ->  | J59: =IFERROR(AVERAGEIFS(数据[￠/英里],数据[日期],G59,数据[活动],$J$8),NA()) -> 
F60: 51 | G60: 2012-06-20 | H60: =SUMIFS(数据[里程],数据[日期],G60,数据[活动],$H$8) -> 0 | I60: =IFERROR(AVERAGEIFS(数据[MPG],数据[日期],G60,数据[活动],$I$8),NA()) ->  | J60: =IFERROR(AVERAGEIFS(数据[￠/英里],数据[日期],G60,数据[活动],$J$8),NA()) -> 
F61: 52 | G61: 2012-06-21 | H61: =SUMIFS(数据[里程],数据[日期],G61,数据[活动],$H$8) -> 0 | I61: =IFERROR(AVERAGEIFS(数据[MPG],数据[日期],G61,数据[活动],$I$8),NA()) ->  | J61: =IFERROR(AVERAGEIFS(数据[￠/英里],数据[日期],G61,数据[活动],$J$8),NA()) -> 
F62: 53 | G62: 2012-06-22 | H62: =SUMIFS(数据[里程],数据[日期],G62,数据[活动],$H$8) -> 0 | I62: =IFERROR(AVERAGEIFS(数据[MPG],数据[日期],G62,数据[活动],$I$8),NA()) ->  | J62: =IFERROR(AVERAGEIFS(数据[￠/英里],数据[日期],G62,数据[活动],$J$8),NA()) -> 
F63: 54 | G63: 2012-06-23 | H63: =SUMIFS(数据[里程],数据[日期],G63,数据[活动],$H$8) -> 0 | I63: =IFERROR(AVERAGEIFS(数据[MPG],数据[日期],G63,数据[活动],$I$8),NA()) ->  | J63: =IFERROR(AVERAGEIFS(数据[￠/英里],数据[日期],G63,数据[活动],$J$8),NA()) -> 
F64: 55 | G64: 2012-06-24 | H64: =SUMIFS(数据[里程],数据[日期],G64,数据[活动],$H$8) -> 0 | I64: =IFERROR(AVERAGEIFS(数据[MPG],数据[日期],G64,数据[活动],$I$8),NA()) ->  | J64: =IFERROR(AVERAGEIFS(数据[￠/英里],数据[日期],G64,数据[活动],$J$8),NA()) -> 
F65: 56 | G65: 2012-06-25 | H65: =SUMIFS(数据[里程],数据[日期],G65,数据[活动],$H$8) -> 0 | I65: =IFERROR(AVERAGEIFS(数据[MPG],数据[日期],G65,数据[活动],$I$8),NA()) ->  | J65: =IFERROR(AVERAGEIFS(数据[￠/英里],数据[日期],G65,数据[活动],$J$8),NA()) -> 
F66: 57 | G66: 2012-06-26 | H66: =SUMIFS(数据[里程],数据[日期],G66,数据[活动],$H$8) -> 0 | I66: =IFERROR(AVERAGEIFS(数据[MPG],数据[日期],G66,数据[活动],$I$8),NA()) ->  | J66: =IFERROR(AVERAGEIFS(数据[￠/英里],数据[日期],G66,数据[活动],$J$8),NA()) -> 
F67: 58 | G67: 2012-06-27 | H67: =SUMIFS(数据[里程],数据[日期],G67,数据[活动],$H$8) -> 0 | I67: =IFERROR(AVERAGEIFS(数据[MPG],数据[日期],G67,数据[活动],$I$8),NA()) ->  | J67: =IFERROR(AVERAGEIFS(数据[￠/英里],数据[日期],G67,数据[活动],$J$8),NA()) -> 
F68: 59 | G68: 2012-06-28 | H68: =SUMIFS(数据[里程],数据[日期],G68,数据[活动],$H$8) -> 0 | I68: =IFERROR(AVERAGEIFS(数据[MPG],数据[日期],G68,数据[活动],$I$8),NA()) ->  | J68: =IFERROR(AVERAGEIFS(数据[￠/英里],数据[日期],G68,数据[活动],$J$8),NA()) -> 
F69: 60 | G69: 2012-06-29 | H69: =SUMIFS(数据[里程],数据[日期],G69,数据[活动],$H$8) -> 0 | I69: =IFERROR(AVERAGEIFS(数据[MPG],数据[日期],G69,数据[活动],$I$8),NA()) ->  | J69: =IFERROR(AVERAGEIFS(数据[￠/英里],数据[日期],G69,数据[活动],$J$8),NA()) -> 
